Cogmind - Beta 13 X1 @@@ ROGUE MODE // 2023.08.15 @ 09:35:28 Player: VR-DUX Result: Destroyed by JA-1V2(R) with Subdweller Laser Performance ------------- Evolutions (0) 0 Regions Visited (2) 400 Robots Destroyed (25) 125 Value Destroyed (529) 529 Prototype IDs (0) 0 Alien Tech Used (0) 0 Bonus (0) 0 TOTAL SCORE: 1054 Bonus ------- None Cogmind --------- Core Integrity 0/250 Matter 274/300 Energy 73/100 System Corruption 8% Temperature Cool (6) Movement Treading (240) Ox1 Location -10/Subcaves Parts ------- > --- POWER (1) -------- Subdweller Power Source > --- PROPULSION (2) --- Light Treads > --- UTILITY (2) ------ Large Storage Unit Signal Interpreter > --- WEAPON (2) ------- Subdweller Laser Heavy Assault Rifle > --- INVENTORY (15) --- Arachnoskeleton Subdweller Monowheel Subdweller Monowheel Disposable Heat Sink Medium Storage Unit Large Storage Unit Structural Scanner Seismic Detector Targeting Computer Utility Shielding Heavy EM Pulse Gun Heavy Assault Rifle Mining Claw Peak State ------------ > --- POWER ------------ Subdweller Power Source > --- PROPULSION ------- Light Treads Light Treads > --- UTILITY ---------- Large Storage Unit Signal Interpreter > --- WEAPON ----------- Subdweller Laser Heavy Assault Rifle > --- INVENTORY -------- Arachnoskeleton Subdweller Monowheel Subdweller Monowheel Disposable Heat Sink Medium Storage Unit Large Storage Unit Structural Scanner Seismic Detector Targeting Computer Utility Shielding Heavy EM Pulse Gun Heavy Assault Rifle Mining Claw [Rating: 13] Favorites ----------- Power Ion Engine Engine Ion Engine Propulsion Light Treads Treads Light Treads Leg Aluminum Leg Utility Large Storage Unit Device Structural Scanner Storage Large Storage Unit Processor Signal Interpreter Weapon Heavy Assault Rifle Energy Gun Heavy EM Pulse Gun Ballistic Gun Heavy Assault Rifle Launcher Grenade Launcher Special Weapon Mining Laser Impact Weapon Hammer Slashing Weapon Mining Claw Build | -11 -10 -10 ------- Run | Jun Mat Sub Slots Evolved . | . . . Power . | . . . Propulsion . | . . . Utility . | . . . Weapon . | . . . Parts Attached 35 | 1 25 9 Power 4 | . 1 3 Engine 4 | . 1 3 Core . | . . . Reactor . | . . . Propulsion 7 | . 5 2 Treads 7 | . 5 2 Leg . | . . . Wheel . | . . . Hover . | . . . Flight . | . . . Utility 6 | 1 5 . Device 3 | 1 2 . Storage 1 | . 1 . Processor 2 | . 2 . Hackware . | . . . Protection . | . . . Artifact . | . . . Weapon 18 | . 14 4 Energy Gun 6 | . 5 1 Energy Cannon . | . . . Ballistic Gun 6 | . 5 1 Ballistic Cannon . | . . . Launcher 2 | . 1 1 Special Weapon 1 | . 1 . Impact Weapon 1 | . 1 . Slashing Weapon 2 | . 1 1 Piercing Weapon . | . . . Special Melee Weapon . | . . . Unidentified Prototypes . | . . . Corrupted Parts 2 | . . 2 System Corruption 7 | . . 7 Parts Lost 7 | . . 7 Power 2 | . . 2 Propulsion 3 | . . 3 Utility . | . . . Weapon 2 | . . 2 Highest Loss Streak 6 | . . 6 To Critical Strikes 1 | . . 1 Average Slot Usage (%) 91 | . 90 95 Engine 7 | . 6 11 Treads 23 | . 21 27 Leg 4 | . 5 . Device 6 | . 7 . Storage 14 | . 14 14 Processor 7 | . 6 14 Energy Gun 12 | . 12 12 Ballistic Gun 11 | . 11 7 Launcher 1 | . . 5 Slashing Weapon 1 | . 2 . Naked Turns . | . . . Heaviest Build 32 | 14 32 32 Greatest Support 40 | 20 40 40 Greatest Overweight (x) 7 | . 7 1 Average Overweight (x) . | . . . Largest Inventory Capacity 15 | 8 15 15 Average Capacity 14 | 8 14 15 Most Carried 15 | 5 15 15 Average Carried 12 | 4 11 13 Final Capacity 15 | 8 15 15 Final Carried 15 | 5 13 15 Class Distribution -------------------- 91% | Mutant 8% | Scavenger-Mutant Dominant Class ---------------- Mutant | -10/Materials Mutant | -10/Subcaves Resources | -11 -10 -10 ----------- Run | Jun Mat Sub Matter Collected 813 | 242 409 162 Remotely . | . . . Salvage Created 868 | 97 630 141 Parts 53 | 7 38 8 Haulers Intercepted 2 | . 2 . Recyclers Shooed 2 | . 2 . Parts Field Recycled . | . . . Retrieved Matter . | . . . Parts Self-Destructed 4 | . . 4 Prevented . | . . . Kills | -11 -10 -10 ------- Run | Jun Mat Sub Combat Hostiles Destroyed 13 | . 9 4 Guns 10 | . 8 2 AOE 3 | . 1 2 Classes Destroyed 9 | 2 6 1 Worker 2 | . 2 . Builder 1 | . 1 . Tunneler 2 | 1 1 . Hauler 2 | . 2 . Recycler 2 | 1 1 . Watcher 3 | . 3 . Swarmer 2 | . 2 . Grunt 7 | . 7 . Subdweller 4 | . . 4 Best Kill Streak 7 | 2 7 2 Combat Bots Only 5 | . 5 2 Max Kills in Single Turn 2 | 1 2 1 Gunslinging . | . . . Exploded 1 | . 1 1 Melee . | . . . Uniques/NPCs Destroyed . | . . . Combat | -11 -10 -10 -------- Run | Jun Mat Sub Damage Taken 1251 | . 615 636 Core 263 | . 115 148 Absorbed by Shields . | . . . Core Remaining (%) 100 | 100 . . Volleys Fired 128 | 8 95 25 Largest 2 | 2 2 2 Hottest 83 | 40 68 83 Shots Fired 152 | 16 106 30 Gun 145 | 16 105 24 Cannon . | . . . Launcher 7 | . 1 6 Special . | . . . Kinetic 81 | 16 46 19 Thermal 3 | . . 3 Explosive 7 | . 1 6 Electromagnetic 61 | . 59 2 Robot Hit Streak 16 | 6 6 16 Robot Miss Streak 4 | 1 4 1 Penetration Max . | . . . Secondary Targets . | . . . Shots Hit Robots 103 | 11 69 23 Core Hits 40 | 3 28 9 Critical Kills . | . . . Critical Parts Destroyed 1 | . 1 . Critical Strikes 3 | . 3 . Destroy 1 | . 1 . Corrupt 2 | . 2 . Melee Attacks . | . . . Impact . | . . . Slashing . | . . . Piercing . | . . . Sneak Attacks . | . . . Combat Hostiles . | . . . Follow-up Attacks . | . . . Damage Inflicted 1911 | 111 1211 589 Guns 1466 | 111 1047 308 Cannons . | . . . Explosions 444 | . 163 281 Melee . | . . . Ramming 1 | . 1 . Kinetic 744 | 111 390 243 Thermal 179 | . 140 39 Explosive 304 | . 23 281 Electromagnetic 683 | . 657 26 Impact . | . . . Slashing . | . . . Piercing . | . . . Highest Corruption 8 | . 1 8 Average Corruption 1 | . 1 3 Corruption Purged . | . . . Corruption Blocked . | . . . Effects 21 | . 12 9 Message Errors 4 | . 3 1 Matter Fused 6 | . 4 2 Heat Flow Errors 1 | . 1 . Energy Discharges 3 | . 2 1 Data Loss (minor) 4 | . 1 3 Misfires 3 | . 1 2 Overload Shots . | . . . Overflow Damage . | . . . Projectiles . | . . . Explosions . | . . . Melee . | . . . Knockbacks . | . . . Impact . | . . . Kinetic . | . . . Secondary . | . . . Self-Inflicted Damage 52 | . 52 . Shots 3 | . 3 . Rammed 1 | . 1 . Targets Rammed 1 | . 1 . Kicked . | . . . Crushed . | . . . Highest Temperature 197 | . 197 . Average Temperature 83 | . 83 . Received Heat Transfer 429 | . 294 135 Siege Activations . | . . . Robots Corrupted 1 | . 1 . Combat Hostiles . | . . . Parts Fried 3 | . 3 . Impact Corruptions . | . . . Robots Melted . | . . . Combat Hostiles . | . . . Parts Melted . | . . . Heat Transferred 250 | . 200 50 Parts Sabotaged . | . . . Parts Stolen . | . . . Parts Stripped . | . . . Power Chain Reactions 2 | . 2 . Missiles Intercepted . | . . . Alert | -11 -10 -10 ------- Run | Jun Mat Sub Peak Influence 180 | 10 180 . Initial 6 | . 6 . Average 19 | 6 19 . Maximum Alert Level . | . . . Low Security (%) 100 | 100 100 . Level 1 . | . . . Level 2 . | . . . Level 3 . | . . . Level 4 . | . . . Level 5 . | . . . High Security . | . . . Max Security . | . . . Squads Dispatched 1 | . 1 . Investigation . | . . . Extermination . | . . . Reinforcement 1 | . 1 . Assault . | . . . Garrison . | . . . Intercept . | . . . Searches Triggered . | . . . Construction Impeded . | . . . Haulers Reinforced . | . . . Active Scanning Responses . | . . . Cargo Convoy Interrupts . | . . . Stealth | -11 -10 -10 --------- Run | Jun Mat Sub Distress Signals . | . . . Communications Jammed . | . . . Distress Signals . | . . . Times Spotted 24 | . 17 7 Peak Tracking Total 6 | . 6 3 Tactical Retreats 2 | . 2 . Traps | -11 -10 -10 ------- Run | Jun Mat Sub Traps Triggered 3 | . 3 . Indirectly . | . . . Trap Hack Attempts . | . . . Triggered . | . . . Disarmed . | . . . Reprogrammed . | . . . Reused . | . . . Traps Extracted . | . . . Installed . | . . . Triggered . | . . . Machines | -11 -10 -10 ---------- Run | Jun Mat Sub Machines Disabled . | . . . Max in Single Turn . | . . . Machines Repaired . | . . . Machines Sabotaged . | . . . Overloaded Fab Kills . | . . . Hacking | -11 -10 -10 --------- Run | Jun Mat Sub Machines Accessed 8 | . 8 . Terminals 6 | . 6 . Fabricators . | . . . Repair Stations 1 | . 1 . Recycling Units 1 | . 1 . Scanalyzers . | . . . Garrison Access . | . . . Total Hacks 18 | . 18 . Successful 4 | . 4 . Failed 14 | . 14 . Catastrophic 3 | . 3 . Database Lockouts . | . . . Manual 11 | . 11 . Terminals 14 | . 14 . Fabricators . | . . . Repair Stations 2 | . 2 . Recycling Units 2 | . 2 . Scanalyzers . | . . . Garrison Access . | . . . Terminal Hacks 2 | . 2 . Record 1 | . 1 . Robot Analysis 1 | . 1 . Fabricator Hacks . | . . . Repair Station Hacks . | . . . Recycling Unit Hacks 1 | . 1 . Retrieve Components 1 | . 1 . Scanalyzer . | . . . Garrison Access Hacks . | . . . Unauthorized Hacks 1 | . 1 . Terminals 1 | . 1 . Botnet 1 | . 1 . Fabricators . | . . . Repair Stations . | . . . Recycling Units . | . . . Scanalyzers . | . . . Garrison Access . | . . . Data Cores Recovered . | . . . Used . | . . . Hacking Detections 8 | . 8 . Full Trace Events 3 | . 3 . Feedback Events 1 | . 1 . Corruption 1 | . 1 . Feedback Blocked . | . . . Robot Schematics Acquired . | . . . Robots Built . | . . . Authchips . | . . . Time . | . . . Total Robot Build Rating . | . . . Part Schematics Acquired . | . . . Parts Built . | . . . Authchips . | . . . Time . | . . . Total Part Build Rating . | . . . Parts Repaired . | . . . Time . | . . . Parts Recycled . | . . . Recycled Matter . | . . . Retrieved Matter . | . . . Retrieved Components . | . . . Parts Scanalyzed . | . . . Part Schematics Acquired . | . . . Parts Damaged . | . . . Bothacking | -11 -10 -10 ------------ Run | Jun Mat Sub Used RIF Installer . | . . . Robots Hacked . | . . . Non-combat . | . . . Combat . | . . . Robot Hacks Applied . | . . . Relay Couplers Released . | . . . Fabnet Peak Effective % . | . . . Robots Rewired . | . . . Allies Hacked . | . . . Hacks Repelled . | . . . Allies | -11 -10 -10 -------- Run | Jun Mat Sub Total Allies . | . . . Largest Group . | . . . Highest-Rated Group . | . . . Highest-Rated Ally . | . . . Total Orders . | . . . Ally Attacks . | . . . Total Damage . | . . . Kills . | . . . Allies Corrupted . | . . . Allies Melted . | . . . Intel | -11 -10 -10 ------- Run | Jun Mat Sub Robot Analysis Total 1 | . 1 . Derelict Logs Recovered . | . . . Drone Launches . | . . . Drone Recoveries . | . . . Exploration | -11 -10 -10 ------------- Run | Jun Mat Sub Turns Passed 2999 | 60 2326 613 Spaces Moved 1580 | 25 1270 285 Core 1 | . 1 . Treads 1326 | . 1041 285 Legs 253 | 25 228 . Wheels . | . . . Hover . | . . . Flight . | . . . Fastest Speed 120 | 120 120 160 Average Speed 165 | 120 161 186 Slowest Speed 400 | 120 400 240 Overloaded Moves . | . . . Propulsion Burnouts . | . . . Robots Hopped . | . . . Cave-ins Triggered . | . . . Exploration Rate (%) 42 | 3 100 24 Regions Visited 2 Branch Regions 1 Pre-discovered Areas . | . . . Known Exits Taken 1 | . 1 . Unknown Exits Taken 1 | 1 . . Scrap Searched . | . . . Spaces Dug . | . . . Terrain Destroyed 36 | . 9 27 Melee . | . . . Projectile . | . . . AOE 36 | . 9 27 Terrain Rammed . | . . . Walls Destroyed . | . . . Machines Disabled . | . . . Actions | -11 -10 -10 --------- Run | Jun Mat Sub Total 1823 | 41 1443 339 Wait 35 | 5 15 15 Move 1578 | 24 1269 285 Hop . | . . . Pick Up 25 | 1 19 5 Fast Attach 11 | 1 8 2 Attach 12 | . 7 5 Detach 2 | . 2 . Swap 12 | . 10 2 Drop 19 | 2 17 . Fire 128 | 8 95 25 Melee . | . . . Ram . | . . . Kick . | . . . Crush 1 | . 1 . Escape Stasis . | . . . Rewire . | . . . Trap . | . . . Miscellaneous . | . . . Route ------- -11/Junkyard -10/Materials (discovered 5 exits: *Mat x3 / [*Min] / *Sub) -10/Subcaves History --------- Turn | Location | Event 30 | -11/Junkyard | Discovered new exit (range 3) 61 | -11/Junkyard | Entered Materials 289 | -10/Materials | Discovered new exit (range 6) 308 | -10/Materials | Build established: Mutant 442 | -10/Materials | Discovered new exit (range 11) 760 | -10/Materials | Discovered new exit (range 4) 1051 | -10/Materials | Discovered new exit (range 8) 2161 | -10/Materials | Identified exit to Materials 2371 | -10/Materials | Discovered new exit (range 11) 2385 | -10/Materials | Identified exit to Subcaves 2387 | -10/Materials | Entered Subcaves 2435 | -10/Subcaves | Shifting Twisted Machinery released Mak. Power Source 2442 | -10/Subcaves | Shifting Twisted Machinery released Flamer 2526 | -10/Subcaves | A swath of the cavern ceiling suddenly collapsed 2662 | -10/Subcaves | Core integrity fell below 50% 2714 | -10/Subcaves | A Subdweller sparked back to life 2714 | -10/Subcaves | A Subdweller sparked back to life 2739 | -10/Subcaves | Core integrity fell below 20% 2779 | -10/Subcaves | Lost 6 parts (2p2n2w) 2809 | -10/Subcaves | Found Prototype Leg 3000 | -10/Subcaves | Destroyed by JA-1V2(R) with Subdweller Laser Last Messages --------------- 02764_ Corrupted Lgt. Treads temporarily disabled. 02770_ Acquired 45 matter. 02774_ Acquired Sub. Power Source. 02778_ Acquired 13 matter. 02783_ Acquired Sub. Laser. 02784_ System corrupted: Energy discharge (-66). 02787_ Acquired Disposable Heat Sink. 02795_ Acquired Sub. Monowheel. 02800_ NNY4UZY5TF|YSP#EKPAV4PBPQL1GT 02806_ Acquired Sub. Monowheel. 02809_ Acquired Prototype Leg. 02851_ System corrupted: Component data lost. 02905_ System corrupted: FCS attempts to trigger Hvy. Assault Rifle. 02905_ System corrupted: Hvy. Assault Rifle misfires. 02925_ System corrupted: Component data lost. 02933_ Sub. Power Source shoots sparks and powers down. 02948_ System corrupted: Matter fused (-6). 02966_ System corrupted: FCS attempts to trigger Hvy. Assault Rifle. 02966_ System corrupted: Hvy. Assault Rifle misfires. 02996_ Lgt. Treads destroyed. Map ----- +----------------------------------------------------+ | ?????????????????????????????????????????????????? | | ?????????????????????????????????????????????????? | | ?????????????????????????????????????????????????? | | ?????????????????????????????????????????????????? | | ?????????????????????????????????????????????????? | | ?????????????????????????????????????????????????? | | ?????????????????????????????????????????????????? | | ?????????????????????????????????????????????????? | | ?????????????????????????????????????????????????? | | ?????????????????????????????????????????????????? | | ?????????????????????????????????????????????????? | | ?????????????????????????????????????????????????? | | ?????????????????????????????????????????????????? | | #???????##???????????????????????????????????????? | | #??????? ##??? ? ????????????????????????????????? | | #??????? ?? % ???????????????????????????????? | | #??????? ??? ??????##??????????????????????? | | ?????### ??? ?????## ???""?????????????????? | | ???### #??# ?????## #??""#?????????????????? | | ???# ### ?????? ### "#?????????????????? | | ???? ???????? ""?????????????????? | | #???? ????????? "" ""?????????????????? | | ##??# #?????????? " ""?????????????????? | | #??# ## #?????????? RR"" "" ????????????????? | | #?## ## #??????????# "" "" ????????????????? | | ### #??????????#@ "" "" #?????????????? | | ## ##?????????# "" #????????????? | | # ######??### "### #????????????? | | # ###### ##?# ##????? ?????????????? | | # #??### ### #?????????????????????? | | #?## #?????????????????????? | | #?# ## ##????????????????????? | | ##?# ## ##??##???????????????? | | ## #?# ## ### #???????????????? | | ###?###### ## ##??????????????? | | #???????## ## ##?????????????? | | ##????#### #?????????????? | | ##?????# ### ###?????????????? | | #?????# ##??###???????????????? | | ??????## ### ### ##?????????????????????? | | ???????###??#### ###?######??????????????????????? | | ???????????????###???????????????????????????????? | | ?????????????????????????????????????????????????? | | ?????????????????????????????????????????????????? | | ?????????????????????????????????????????????????? | | ?????????????????????????????????????????????????? | | ?????????????????????????????????????????????????? | | ?????????????????????????????????????????????????? | | ?????????????????????????????????????????????????? | | ?????????????????????????????????????????????????? | +----------------------------------------------------+ Best States ------------- Heat Dissipation 25 Energy Generation 15 Energy Capacity 250 Matter Stores 300 Matter Capacity 300 Sight Range 16 Terrain Scan Density 10 Evasion (%) 55 Targeting Accuracy 5 Recoil Reduction 2 Item Schematics ----------------- None Robot Schematics ------------------ None Fabricated ------------ Nothing Alien Tech Used ----------------- None Achievements -------------- None Challenges ------------ None Game ------ Seed BladeHeartShockpuncher Manual? 0 Play Time 00:27:28 Cumulative 66.2 hours Start 2023.08.15 @ 09:04:49 End 2023.08.15 @ 09:35:28 Sessions 1 Manual Loads 0 Difficulty Rogue Special Mode None Game No. 35 Rogue 35 Adventurer 0 Explorer 0 Win Type - Total 0 Types 0/0/0/0/0/0/0/0/0 Lore% 34 Gallery% 34 Achievement% 35 Wizard Run 0 Options --------- ASCII 0 Keyboard 0 Movement Mouse Keybinds 0 Fullscreen 1 Font 16/SmallcapsGlow Map View 82x54 Tactical HUD 1 Map Filters NONE Filters NONE Steam 1 RUN: 0322d12c-78ea-4f1a-a359-80a47f508bf4